[Event "Portugal Open 2019"]
[Site "Lisbon"]
[Date "2019.02.09"]
[Round "9.27"]
[White "Costa, Paulo"]
[Black "Rocha, Sergio"]
[Result "0-1"]
[ECO "A04"]
[WhiteElo "2200"]
[BlackElo "2354"]
[Annotator "NA"]
[PlyCount "102"]
[EventDate "2019.01.25"]
[EventType "swiss"]
[EventCountry "POR"]
[SourceTitle "playchess.com"]
[Source "ChessBase"]
[SourceQuality "1"]
[TimeControl "5400+30"]

1. Nf3 {[%emt 0:02:49]} c5 {[%emt 0:00:00]} 2. g3 {[%emt 0:01:06]} Nc6 {[%emt 0:00:00]} 3. Bg2 {[%emt 0:00:09]} d5 {[%emt 0:00:54]} 4. O-O {[%emt 0:00:56]} e5 {[%emt 0:00:32]} 5. d3 {[%emt 0:00:23]} Bd6 {[%emt 0:00:09]} 6. e4 {[%emt 0:02:50]} d4 {[%emt 0:00:19]} 7. Nbd2 {[%emt 0:00:06]} Nge7 {[%emt 0:00:09]} 8. Nc4 {[%emt 0:00:05]} Bc7 {[%emt 0:00:54]} 9. a4 {[%emt 0:01:02]} f6 {[%emt 0:00:10]} 10. Ne1 {[%emt 0:01:09]} Be6 {[%emt 0:00:33]} 11. Bh3 {[%emt 0:06:07]} Bf7 {[%emt 0:07:10]} 12. f4 {[%emt 0:01:40]} Ng6 {[%emt 0:00:31]} 13. b3 {[%emt 0:14:27]} a6 {[%emt 0:08:11]} 14. fxe5 {[%emt 0:11:22]} Ngxe5 {[%emt 0:00:32]} 15. Bf4 {[%emt 0:02:40]} O-O {[%emt 0:07:14]} 16. Nxe5 {[%emt 0:05:51]} Bxe5 {[%emt 0:01:17]} 17. Qd2 {[%emt 0:03:32]} b6 {[%emt 0:01:55]} 18. Nf3 {[%emt 0:02:23]} Re8 {[%emt 0:04:07]} 19. Bxe5 {[%emt 0:04:26]} Nxe5 {[%emt 0:01:09]} 20. Nxe5 {[%emt 0:00:46]} Rxe5 {[%emt 0:00:05]} 21. Qf4 {[%emt 0:03:05]} b5 {[%emt 0:03:22]} 22. axb5 {[%emt 0:03:22]} axb5 {[%emt 0:00:13]} 23. Qg4 {[%emt 0:03:46]} c4 {[%emt 0:28:28]} 24. bxc4 {[%emt 0:01:05]} bxc4 {[%emt 0:00:04]} 25. Qd7 {[%emt 0:02:17]} Qxd7 {[%emt 0:05:43]} 26. Bxd7 {[%emt 0:00:47]} Rd8 {[%emt 0:00:16]} 27. Bg4 {[%emt 0:02:57]} c3 {[%emt 0:00:27]} 28. Rf5 {[%emt 0:02:04]} Rb8 {[%emt 0:07:50]} 29. Rxe5 {[%emt 0:02:02]} fxe5 {[%emt 0:00:39]} 30. Kf1 {[%emt 0:00:57]} h5 {[%emt 0:00:14]} 31. Bd1 {[%emt 0:00:30]} g6 {[%emt 0:01:34]} 32. h4 {[%emt 0:04:10]} Be6 {[%emt 0:00:56]} 33. Ke1 {[%emt 0:00:28]} Kf7 {[%emt 0:00:41]} 34. Be2 {[%emt 0:01:04]} Rb2 {[%emt 0:00:45]} 35. Bd1 {[%emt 0:00:59]} Ba2 {[%emt 0:00:24]} 36. g4 {[%emt 0:06:26]} hxg4 {[%emt 0:00:12]} 37. Bxg4 {[%emt 0:00:09]} Ke7 {[%emt 0:01:28]} 38. Bd1 {[%emt 0:00:42]} Kd6 {[%emt 0:02:46]} 39. Kf2 {[%emt 0:02:06]} Kc5 {[%emt 0:00:16]} 40. Kg3 {[%emt 0:00:18]} Kb4 {[%emt 0:00:07]} 41. Kg4 {[%emt 0:00:14]} Ka3 {[%emt 0:00:06]} 42. Kg5 {[%emt 0:00:17]} Rb6 {[%emt 0:00:04]} 43. h5 {[%emt 0:04:00]} gxh5 {[%emt 0:00:05]} 44. Kf5 {[%emt 0:00:02]} Rb5 {[%emt 0:02:37]} 45. Bxh5 {[%emt 0:00:21]} Kb2 {[%emt 0:00:07]} 46. Rg1 {[%emt 0:01:09]} Kxc2 {[%emt 0:00:09]} 47. Rg2+ {[%emt 0:00:46]} Kb1 {[%emt 0:00:13]} 48. Be8 {[%emt 0:00:40]} Ra5 {[%emt 0:00:27]} 49. Rg7 {[%emt 0:01:03]} c2 {[%emt 0:00:27]} 50. Rb7+ {[%emt 0:00:08]} Ka1 {[%emt 0:00:32]} 51. Rc7 {[%emt 0:00:08]} Kb2 {[%emt 0:00:16]} 0-1

[Event "Portugal Open 2019"]
[Site "Lisbon"]
[Date "2019.02.09"]
[Round "9.28"]
[White "Newrkla, Katharina"]
[Black "Tryggestad, Andreas Garberg"]
[Result "1/2-1/2"]
[ECO "B48"]
[WhiteElo "2180"]
[BlackElo "2351"]
[Annotator "NA"]
[PlyCount "108"]
[EventDate "2019.01.25"]
[EventType "swiss"]
[EventCountry "POR"]
[SourceTitle "playchess.com"]
[Source "ChessBase"]
[SourceQuality "1"]
[TimeControl "5400+30"]

1. e4 {[%emt 0:00:00]} c5 {[%emt 0:07:14]} 2. Nf3 {[%emt 0:00:00]} e6 {[%emt 0:00:04]} 3. d4 {[%emt 0:00:00]} cxd4 {[%emt 0:00:04]} 4. Nxd4 {[%emt 0:00:00]} Nc6 {[%emt 0:00:05]} 5. Nc3 {[%emt 0:00:00]} Qc7 {[%emt 0:00:07]} 6. Be3 {[%emt 0:00:04]} Nf6 {[%emt 0:00:06]} 7. f4 {[%emt 0:00:59]} Nxd4 {[%emt 0:01:32]} 8. Bxd4 {[%emt 0:08:41]} Qxf4 {[%emt 0:00:43]} 9. g3 {[%emt 0:00:11]} Qc7 {[%emt 0:19:46]} 10. e5 {[%emt 0:00:31]} Nd5 {[%emt 0:00:02]} 11. Nxd5 {[%emt 0:09:26]} exd5 {[%emt 0:00:06]} 12. Bd3 {[%emt 0:00:31]} Bc5 {[%emt 0:05:14]} 13. Qg4 {[%emt 0:12:50]} Bxd4 {[%emt 0:15:38]} 14. Qxd4 {[%emt 0:00:06]} O-O {[%emt 0:01:23]} 15. O-O-O {[%emt 0:00:55]} d6 {[%emt 0:00:55]} 16. Rhe1 {[%emt 0:13:14]} Be6 {[%emt 0:01:08]} 17. exd6 {[%emt 0:04:31]} Qxd6 {[%emt 0:00:02]} 18. Re5 {[%emt 0:00:34]} Rac8 {[%emt 0:10:46]} 19. Rg5 {[%emt 0:08:03]} g6 {[%emt 0:05:30]} 20. Rf1 {[%emt 0:06:58]} Qb6 {[%emt 0:11:13]} 21. Qh4 {[%emt 0:20:55]} Qe3+ {[%emt 0:02:41]} 22. Kb1 {[%emt 0:00:05]} Kg7 {[%emt 0:00:03]} 23. Qf4 {[%emt 0:00:08]} Qxf4 {[%emt 0:00:18]} 24. gxf4 {[%emt 0:00:04]} Kf6 {[%emt 0:07:49]} 25. h4 {[%emt 0:00:53]} h6 {[%emt 0:00:06]} 26. Re5 {[%emt 0:01:17]} Rfe8 {[%emt 0:02:38]} 27. Kc1 {[%emt 0:01:00]} Bh3 {[%emt 0:07:12]} 28. Rfe1 {[%emt 0:05:15]} Rxe5 {[%emt 0:00:12]} 29. Rxe5 {[%emt 0:00:07]} Be6 {[%emt 0:00:51]} 30. Kd2 {[%emt 0:00:13]} d4 {[%emt 0:00:46]} 31. Ra5 {[%emt 0:00:21]} a6 {[%emt 0:00:01]} 32. Be4 {[%emt 0:00:41]} Bc4 {[%emt 0:01:13]} 33. Re5 {[%emt 0:04:05]} b6 {[%emt 0:00:24]} 34. b3 {[%emt 0:02:28]} Be6 {[%emt 0:00:11]} 35. Bb7 {[%emt 0:00:52]} Rc3 {[%emt 0:00:50]} 36. Bxa6 {[%emt 0:00:21]} Rh3 {[%emt 0:00:23]} 37. Re4 {[%emt 0:00:26]} Rxh4 {[%emt 0:00:26]} 38. Rxd4 {[%emt 0:00:08]} Rh2+ {[%emt 0:00:19]} 39. Kc3 {[%emt 0:00:24]} h5 {[%emt 0:00:06]} 40. a4 {[%emt 0:00:10]} h4 {[%emt 0:00:02]} 41. b4 {[%emt 0:01:12]} h3 {[%emt 0:00:34]} 42. Bb7 {[%emt 0:00:31]} g5 {[%emt 0:01:42]} 43. fxg5+ {[%emt 0:00:15]} Kxg5 {[%emt 0:00:01]} 44. a5 {[%emt 0:00:13]} bxa5 {[%emt 0:00:01]} 45. bxa5 {[%emt 0:00:05]} Bf5 {[%emt 0:01:25]} 46. Rd2 {[%emt 0:01:36]} Rxd2 {[%emt 0:00:01]} 47. Kxd2 {[%emt 0:00:05]} h2 {[%emt 0:00:06]} 48. Ke3 {[%emt 0:01:33]} Bc8 {[%emt 0:01:28]} 49. Bd5 {[%emt 0:00:51]} Kf5 {[%emt 0:00:21]} 50. Kf2 {[%emt 0:00:13]} Ke5 {[%emt 0:00:00]} 51. Bf3 {[%emt 0:00:32]} Kd4 {[%emt 0:00:53]} 52. Kg2 {[%emt 0:00:10]} Kc3 {[%emt 0:00:04]} 53. Be4 {[%emt 0:00:20]} Kb4 {[%emt 0:00:05]} 54. Kxh2 {[%emt 0:00:16]} Kxa5 {[%emt 0:00:02]} 1/2-1/2

[Event "Portugal Open 2019"]
[Site "Lisbon"]
[Date "2019.02.09"]
[Round "9.29"]
[White "Gu, Xiaobing"]
[Black "Carlsson, Ludvig"]
[Result "1-0"]
[ECO "C02"]
[WhiteElo "2326"]
[BlackElo "2217"]
[Annotator "NA"]
[PlyCount "67"]
[EventDate "2019.01.25"]
[EventType "swiss"]
[EventCountry "POR"]
[SourceTitle "playchess.com"]
[Source "ChessBase"]
[SourceQuality "1"]
[TimeControl "5400+30"]

1. e4 {[%emt 0:02:19]} e6 {[%emt 0:00:00]} 2. d4 {[%emt 0:00:13]} d5 {[%emt 0:00:00]} 3. e5 {[%emt 0:00:03]} c5 {[%emt 0:00:14]} 4. c3 {[%emt 0:00:02]} Qb6 {[%emt 0:00:10]} 5. Nf3 {[%emt 0:01:26]} Nc6 {[%emt 0:00:12]} 6. a3 {[%emt 0:00:35]} c4 {[%emt 0:04:21]} 7. Nbd2 {[%emt 0:00:16]} Na5 {[%emt 0:00:10]} 8. Be2 {[%emt 0:01:47]} Bd7 {[%emt 0:00:13]} 9. O-O {[%emt 0:02:05]} Ne7 {[%emt 0:00:08]} 10. Rb1 {[%emt 0:02:34]} h6 {[%emt 0:00:12]} 11. Re1 {[%emt 0:04:43]} Qc7 {[%emt 0:00:10]} 12. Nf1 {[%emt 0:05:58]} Nc8 {[%emt 0:00:13]} 13. h4 {[%emt 0:00:51]} Nb6 {[%emt 0:01:39]} 14. Bf4 {[%emt 0:00:05]} Be7 {[%emt 0:04:23]} 15. Qc1 {[%emt 0:08:41]} Ba4 {[%emt 0:00:55]} 16. h5 {[%emt 0:03:38]} O-O-O {[%emt 0:00:39]} 17. Bh2 {[%emt 0:04:16]} Rdg8 {[%emt 0:05:01]} 18. Qf4 {[%emt 0:05:42]} Bd8 {[%emt 0:03:09]} 19. N3d2 {[%emt 0:00:47]} Bg5 {[%emt 0:03:42]} 20. Qg3 {[%emt 0:00:38]} g6 {[%emt 0:00:18]} 21. f4 {[%emt 0:05:38]} Be7 {[%emt 0:00:59]} 22. Ne3 {[%emt 0:02:19]} gxh5 {[%emt 0:03:14]} 23. Qh3 {[%emt 0:00:02]} h4 {[%emt 0:00:17]} 24. Bh5 {[%emt 0:01:35]} Be8 {[%emt 0:07:47]} 25. f5 {[%emt 0:00:07]} Qc6 {[%emt 0:00:53]} 26. Nf3 {[%emt 0:03:00]} Nb3 {[%emt 0:02:22]} 27. Re2 {[%emt 0:01:32]} Na4 {[%emt 0:01:24]} 28. Rf1 {[%emt 0:00:26]} Bg5 {[%emt 0:00:45]} 29. Nxh4 {[%emt 0:09:03]} Qb6 {[%emt 0:03:39]} 30. Kh1 {[%emt 0:04:47]} Nxd4 {[%emt 0:09:13]} 31. cxd4 {[%emt 0:00:49]} Qxd4 {[%emt 0:00:08]} 32. fxe6 {[%emt 0:04:36]} fxe6 {[%emt 0:00:31]} 33. Qxe6+ {[%emt 0:00:51]} Bd7 {[%emt 0:00:17]} 34. Nhf5 {[%emt 0:00:15]} 1-0

[Event "Portugal Open 2019"]
[Site "Lisbon"]
[Date "2019.02.09"]
[Round "9.30"]
[White "Fus, Jakub"]
[Black "Santos, Jose Guilherme B Li"]
[Result "1-0"]
[ECO "A45"]
[WhiteElo "2326"]
[BlackElo "2191"]
[Annotator "NA"]
[PlyCount "121"]
[EventDate "2019.01.25"]
[EventType "swiss"]
[EventCountry "POR"]
[SourceTitle "playchess.com"]
[Source "ChessBase"]
[SourceQuality "1"]
[TimeControl "5400+30"]

1. d4 {[%emt 0:00:00]} Nf6 {[%emt 0:00:42]} 2. Bg5 {[%emt 0:00:00]} d5 {[%emt 0:01:58]} 3. e3 {[%emt 0:00:33]} c5 {[%emt 0:02:09]} 4. Bxf6 {[%emt 0:01:33]} gxf6 {[%emt 0:01:10]} 5. c4 {[%emt 0:00:11]} cxd4 {[%emt 0:11:48]} 6. exd4 {[%emt 0:02:29]} Nc6 {[%emt 0:07:54]} 7. Nc3 {[%emt 0:01:25]} dxc4 {[%emt 0:04:04]} 8. d5 {[%emt 0:03:18]} Ne5 {[%emt 0:00:05]} 9. Bxc4 {[%emt 0:01:09]} Nxc4 {[%emt 0:05:46]} 10. Qa4+ {[%emt 0:00:16]} Bd7 {[%emt 0:00:05]} 11. Qxc4 {[%emt 0:00:08]} Qb6 {[%emt 0:00:03]} 12. Nge2 {[%emt 0:01:07]} Bh6 {[%emt 0:05:18]} 13. O-O {[%emt 0:06:33]} Rg8 {[%emt 0:05:22]} 14. Qe4 {[%emt 0:27:00]} f5 {[%emt 0:16:08]} 15. Qf3 {[%emt 0:02:20]} O-O-O {[%emt 0:01:06]} 16. a4 {[%emt 0:05:53]} Kb8 {[%emt 0:04:26]} 17. a5 {[%emt 0:01:07]} Qd6 {[%emt 0:00:23]} 18. Nd4 {[%emt 0:11:13]} Qf4 {[%emt 0:08:47]} 19. Qxf4+ {[%emt 0:06:40]} Bxf4 {[%emt 0:00:06]} 20. a6 {[%emt 0:03:14]} b6 {[%emt 0:04:19]} 21. Rfe1 {[%emt 0:08:01]} Bd6 {[%emt 0:01:24]} 22. Ncb5 {[%emt 0:03:35]} Bxb5 {[%emt 0:04:50]} 23. Nxb5 Bc5 {[%emt 0:01:29]} 24. Red1 {[%emt 0:04:12]} Rg4 {[%emt 0:00:26]} 25. Rd2 {[%emt 0:02:25]} Rb4 {[%emt 0:05:01]} 26. Nc3 {[%emt 0:00:07]} Bd4 {[%emt 0:02:22]} 27. Re1 {[%emt 0:01:54]} Bf6 {[%emt 0:00:09]} 28. d6 {[%emt 0:01:22]} e6 {[%emt 0:00:18]} 29. Red1 {[%emt 0:01:09]} Bxc3 {[%emt 0:04:32]} 30. bxc3 {[%emt 0:00:03]} Ra4 {[%emt 0:00:12]} 31. Rd3 {[%emt 0:00:27]} Rxa6 {[%emt 0:00:03]} 32. Rh3 {[%emt 0:00:11]} Rxd6 {[%emt 0:00:09]} 33. Rf1 {[%emt 0:00:29]} Ra3 {[%emt 0:00:27]} 34. Rxh7 {[%emt 0:00:20]} Rxc3 {[%emt 0:00:04]} 35. Rxf7 {[%emt 0:00:03]} Rc7 {[%emt 0:01:17]} 36. Rf6 {[%emt 0:00:03]} a5 {[%emt 0:00:18]} 37. h4 {[%emt 0:00:04]} Rh7 {[%emt 0:00:33]} 38. g3 {[%emt 0:00:25]} a4 {[%emt 0:00:34]} 39. Rb1 {[%emt 0:00:31]} Ka7 {[%emt 0:02:15]} 40. Rb4 {[%emt 0:00:14]} Ka6 {[%emt 0:01:19]} 41. Rxa4+ {[%emt 0:00:04]} Kb5 {[%emt 0:00:01]} 42. Ra1 {[%emt 0:00:54]} Rhd7 {[%emt 0:00:29]} 43. Re1 {[%emt 0:00:38]} Kc4 {[%emt 0:00:28]} 44. Rexe6 {[%emt 0:00:43]} Rxe6 {[%emt 0:00:06]} 45. Rxe6 {[%emt 0:00:02]} b5 {[%emt 0:00:03]} 46. Rc6+ {[%emt 0:00:37]} Kd4 {[%emt 0:01:44]} 47. Rb6 {[%emt 0:00:15]} Kc4 {[%emt 0:00:39]} 48. f3 {[%emt 0:02:08]} b4 {[%emt 0:00:13]} 49. Kg2 {[%emt 0:00:20]} b3 {[%emt 0:00:44]} 50. g4 {[%emt 0:00:09]} Rd5 {[%emt 0:00:19]} 51. g5 {[%emt 0:01:50]} f4 {[%emt 0:00:32]} 52. g6 {[%emt 0:00:18]} Rd2+ {[%emt 0:00:27]} 53. Kh3 {[%emt 0:01:12]} Kc3 {[%emt 0:00:35]} 54. g7 {[%emt 0:00:18]} Rd8 {[%emt 0:00:15]} 55. h5 {[%emt 0:00:06]} b2 {[%emt 0:00:01]} 56. h6 {[%emt 0:00:10]} Rd6 {[%emt 0:00:20]} 57. h7 {[%emt 0:02:29]} Rxb6 {[%emt 0:00:57]} 58. h8=Q {[%emt 0:00:00]} b1=Q {[%emt 0:00:26]} 59. g8=Q+ Kd2 {[%emt 0:01:00]} 60. Qd4+ {[%emt 0:00:37]} Ke1 {[%emt 0:00:37]} 61. Qgg1+ {[%emt 0:00:13]} 1-0

[Event "Portugal Open 2019"]
[Site "Lisbon"]
[Date "2019.02.09"]
[Round "9.31"]
[White "Tscharotschkin, Michael"]
[Black "Shailesh, Dravid"]
[Result "1/2-1/2"]
[ECO "B22"]
[WhiteElo "2178"]
[BlackElo "2324"]
[Annotator "NA"]
[PlyCount "83"]
[EventDate "2019.01.25"]
[EventType "swiss"]
[EventCountry "POR"]
[SourceTitle "playchess.com"]
[Source "ChessBase"]
[SourceQuality "1"]
[TimeControl "5400+30"]

1. e4 {[%emt 0:03:15]} c5 {[%emt 0:04:04]} 2. c3 {[%emt 0:00:07]} Nf6 {[%emt 0:00:58]} 3. e5 {[%emt 0:00:05]} Nd5 {[%emt 0:00:04]} 4. d4 {[%emt 0:00:06]} cxd4 {[%emt 0:00:24]} 5. cxd4 {[%emt 0:00:07]} Nc6 {[%emt 0:00:14]} 6. Nf3 {[%emt 0:00:09]} d6 {[%emt 0:00:36]} 7. Bc4 {[%emt 0:01:24]} Nb6 {[%emt 0:02:24]} 8. Bb5 {[%emt 0:00:09]} dxe5 {[%emt 0:00:32]} 9. Nxe5 {[%emt 0:01:14]} Bd7 {[%emt 0:00:12]} 10. Nc3 {[%emt 0:00:55]} e6 {[%emt 0:10:39]} 11. O-O {[%emt 0:00:43]} Be7 {[%emt 0:03:39]} 12. Qf3 {[%emt 0:11:04]} O-O {[%emt 0:01:35]} 13. Rd1 {[%emt 0:02:06]} Rc8 {[%emt 0:08:09]} 14. Be3 {[%emt 0:02:20]} Be8 {[%emt 0:13:58]} 15. Qh3 {[%emt 0:08:43]} f5 {[%emt 0:02:24]} 16. Nxc6 {[%emt 0:03:06]} Bxc6 {[%emt 0:00:58]} 17. Bxc6 {[%emt 0:02:26]} bxc6 {[%emt 0:00:41]} 18. Bf4 {[%emt 0:01:15]} Bf6 {[%emt 0:00:21]} 19. Qe3 {[%emt 0:01:49]} Re8 {[%emt 0:01:30]} 20. Be5 {[%emt 0:00:33]} Bg5 {[%emt 0:03:40]} 21. Qe2 {[%emt 0:02:51]} Qe7 {[%emt 0:00:56]} 22. f4 {[%emt 0:04:21]} Bf6 {[%emt 0:01:02]} 23. Rd3 {[%emt 0:01:12]} Rcd8 {[%emt 0:02:34]} 24. Rad1 {[%emt 0:03:08]} Nd5 {[%emt 0:07:22]} 25. Nxd5 {[%emt 0:00:38]} Rxd5 {[%emt 0:00:11]} 26. Rc3 {[%emt 0:02:12]} Bxe5 {[%emt 0:03:22]} 27. dxe5 {[%emt 0:01:11]} Rxd1+ {[%emt 0:01:35]} 28. Qxd1 {[%emt 0:00:21]} Rd8 {[%emt 0:00:04]} 29. Qb3 {[%emt 0:06:00]} Qd7 {[%emt 0:05:49]} 30. g3 {[%emt 0:02:04]} Kf7 {[%emt 0:02:13]} 31. Qc2 {[%emt 0:04:14]} Qd4+ {[%emt 0:04:15]} 32. Kg2 {[%emt 0:01:06]} g5 {[%emt 0:00:44]} 33. fxg5 {[%emt 0:02:38]} Qxe5 {[%emt 0:00:18]} 34. Rxc6 {[%emt 0:02:40]} Qe3 {[%emt 0:00:38]} 35. Rd6 {[%emt 0:03:49]} Rxd6 {[%emt 0:05:32]} 36. Qc7+ {[%emt 0:00:00]} Kg6 {[%emt 0:00:03]} 37. Qxd6 {[%emt 0:00:00]} Kxg5 {[%emt 0:00:19]} 38. Qd8+ {[%emt 0:06:56]} Kg6 {[%emt 0:00:06]} 39. Qe8+ {[%emt 0:00:26]} Kh6 {[%emt 0:00:38]} 40. Qf8+ {[%emt 0:00:46]} Kg6 {[%emt 0:00:05]} 41. Qg8+ {[%emt 0:02:29]} Kh6 {[%emt 0:00:19]} 42. Qf8+ {[%emt 0:01:50]} 1/2-1/2

[Event "Portugal Open 2019"]
[Site "Lisbon"]
[Date "2019.02.09"]
[Round "9.32"]
[White "Godzwon, Iwo"]
[Black "Borges, Guilherme Deola"]
[Result "1-0"]
[ECO "E04"]
[WhiteElo "2322"]
[BlackElo "2181"]
[Annotator "NA"]
[PlyCount "55"]
[EventDate "2019.01.25"]
[EventType "swiss"]
[EventCountry "POR"]
[SourceTitle "playchess.com"]
[Source "ChessBase"]
[SourceQuality "1"]
[TimeControl "5400+30"]

1. d4 {[%emt 0:00:00]} Nf6 {[%emt 0:00:00]} 2. c4 {[%emt 0:00:00]} e6 {[%emt 0:00:00]} 3. g3 {[%emt 0:00:00]} d5 {[%emt 0:00:24]} 4. Nf3 {[%emt 0:00:00]} dxc4 {[%emt 0:01:30]} 5. Bg2 {[%emt 0:03:29]} a6 {[%emt 0:01:54]} 6. O-O {[%emt 0:02:05]} b5 {[%emt 0:01:18]} 7. b3 {[%emt 0:02:00]} cxb3 {[%emt 0:00:44]} 8. axb3 {[%emt 0:00:02]} Bb7 {[%emt 0:00:28]} 9. Nbd2 {[%emt 0:02:58]} Be7 {[%emt 0:06:48]} 10. Bb2 {[%emt 0:02:08]} Nbd7 {[%emt 0:02:15]} 11. Qc2 {[%emt 0:04:37]} Rc8 {[%emt 0:05:38]} 12. Rfd1 {[%emt 0:20:47]} c5 {[%emt 0:02:04]} 13. Qb1 {[%emt 0:03:08]} O-O {[%emt 0:02:16]} 14. dxc5 {[%emt 0:01:21]} Bxc5 {[%emt 0:01:35]} 15. Ng5 {[%emt 0:13:47]} Bxg2 {[%emt 0:07:44]} 16. Kxg2 {[%emt 0:00:03]} Qb6 {[%emt 0:04:10]} 17. Nde4 {[%emt 0:01:55]} h6 {[%emt 0:04:02]} 18. Bxf6 {[%emt 0:01:38]} hxg5 {[%emt 0:00:14]} 19. Rxd7 {[%emt 0:07:04]} Qc6 {[%emt 0:00:23]} 20. Bxg7 {[%emt 0:02:46]} f5 {[%emt 0:09:10]} 21. Bxf8 {[%emt 0:00:58]} Rxf8 {[%emt 0:00:06]} 22. Qc1 {[%emt 0:07:58]} Qxe4+ {[%emt 0:02:40]} 23. Kg1 {[%emt 0:00:02]} Bxf2+ {[%emt 0:00:26]} 24. Kxf2 {[%emt 0:00:05]} f4 {[%emt 0:00:05]} 25. g4 {[%emt 0:03:33]} Qe5 {[%emt 0:00:07]} 26. Qc2 {[%emt 0:01:52]} Qe3+ {[%emt 0:00:06]} 27. Kg2 {[%emt 0:00:41]} f3+ {[%emt 0:00:26]} 28. Kh1 {[%emt 0:00:06]} 1-0

[Event "Portugal Open 2019"]
[Site "Lisbon"]
[Date "2019.02.09"]
[Round "9.33"]
[White "Bartel, Michal"]
[Black "Hill, Alistair"]
[Result "1-0"]
[ECO "B45"]
[WhiteElo "2306"]
[BlackElo "2152"]
[Annotator "NA"]
[PlyCount "125"]
[EventDate "2019.01.25"]
[EventType "swiss"]
[EventCountry "POR"]
[SourceTitle "playchess.com"]
[Source "ChessBase"]
[SourceQuality "1"]
[TimeControl "5400+30"]

1. e4 c5 2. Nf3 e6 3. d4 cxd4 4. Nxd4 Nc6 5. Nc3 Nf6 6. Nb3 d5 7. Bb5 dxe4 8. Qxd8+ Kxd8 9. Bg5 Be7 10. O-O-O+ Kc7 11. Bf4+ e5 12. Bxc6 exf4 13. Bxe4 Nxe4 14. Nxe4 Rd8 15. Nc3 Be6 16. Nd4 Bf6 17. Nxe6+ fxe6 18. Ne4 Kc6 19. c3 b5 20. Kc2 Rd5 21. Rxd5 Kxd5 22. f3 Kc6 23. Rd1 Rd8 24. Ra1 a6 25. a4 b4 26. Nxf6 gxf6 27. Re1 e5 28. cxb4 h5 29. Re2 h4 30. h3 Rd7 31. Kc3 Rd1 32. Rc2 Kb6 33. a5+ Kb7 34. b5 Rd5 35. bxa6+ Kxa6 36. b4 Kb5 37. Ra2 Rd8 38. a6 Rc8+ 39. Kd3 f5 40. Ra5+ Kb6 41. Rxe5 Rg8 42. Rxf5 Rxg2 43. Rf6+ Kb5 44. Rxf4 Kxa6 45. Rxh4 Kb5 46. Rf4 Rh2 47. h4 Rh1 48. Re4 Rh2 49. Kc3 Rh3 50. Rf4 Rh1 51. Rf5+ Kc6 52. h5 Kd6 53. Kd4 Ke6 54. Re5+ Kd6 55. Rd5+ Ke6 56. Rb5 Rh4+ 57. Ke3 Kd6 58. f4 Kc6 59. Rg5 Rh3+ 60. Ke4 Rb3 61. b5+ Kd6 62. b6 Ke7 63. Rg6 1-0

[Event "Portugal Open 2019"]
[Site "Lisbon"]
[Date "2019.02.09"]
[Round "9.34"]
[White "Andias, Joao Pedro Menezes"]
[Black "Ilic, Zoran S"]
[Result "0-1"]
[ECO "B31"]
[WhiteElo "2039"]
[BlackElo "2302"]
[Annotator "NA"]
[PlyCount "78"]
[EventDate "2019.01.25"]
[EventType "swiss"]
[EventCountry "POR"]
[SourceTitle "playchess.com"]
[Source "ChessBase"]
[SourceQuality "1"]
[TimeControl "5400+30"]

1. e4 {[%emt 0:00:00]} c5 {[%emt 0:00:00]} 2. Nf3 {[%emt 0:00:00]} Nc6 {[%emt 0:00:00]} 3. Bb5 {[%emt 0:00:02]} g6 {[%emt 0:00:00]} 4. O-O {[%emt 0:01:29]} Bg7 {[%emt 0:00:04]} 5. Re1 {[%emt 0:00:41]} Nf6 {[%emt 0:01:09]} 6. c3 {[%emt 0:01:09]} O-O {[%emt 0:00:47]} 7. d4 {[%emt 0:02:20]} Qb6 {[%emt 0:07:17]} 8. Bxc6 {[%emt 0:10:47]} bxc6 {[%emt 0:02:18]} 9. dxc5 {[%emt 0:02:08]} Qxc5 {[%emt 0:00:46]} 10. Qc2 {[%emt 0:19:30]} d5 {[%emt 0:11:16]} 11. Be3 {[%emt 0:00:13]} Qa5 {[%emt 0:01:34]} 12. b4 {[%emt 0:12:31]} Qc7 {[%emt 0:03:14]} 13. Nbd2 {[%emt 0:01:03]} Nxe4 {[%emt 0:11:53]} 14. Nxe4 {[%emt 0:00:19]} Bf5 {[%emt 0:00:36]} 15. Nfd2 {[%emt 0:02:16]} dxe4 {[%emt 0:02:17]} 16. Nb3 {[%emt 0:02:35]} Rfd8 {[%emt 0:07:13]} 17. Nd4 {[%emt 0:17:00]} Rd5 {[%emt 0:05:53]} 18. Rac1 {[%emt 0:05:05]} Rad8 {[%emt 0:02:21]} 19. Qa4 {[%emt 0:00:35]} Bd7 {[%emt 0:01:32]} 20. Qa6 {[%emt 0:11:08]} c5 {[%emt 0:20:35]} 21. Nb3 {[%emt 0:00:22]} Bc8 {[%emt 0:12:23]} 22. Qc4 {[%emt 0:00:56]} Rh5 {[%emt 0:00:51]} 23. g3 {[%emt 0:02:06]} Be6 {[%emt 0:00:22]} 24. Qe2 {[%emt 0:05:16]} c4 {[%emt 0:01:52]} 25. Nc5 {[%emt 0:01:41]} Bd5 {[%emt 0:00:05]} 26. Bf4 {[%emt 0:01:14]} Qc8 {[%emt 0:01:17]} 27. Nxe4 {[%emt 0:00:28]} Qh3 {[%emt 0:01:14]} 28. f3 {[%emt 0:00:14]} Bxe4 {[%emt 0:01:30]} 29. fxe4 {[%emt 0:00:08]} Rd3 {[%emt 0:00:12]} 30. Qf2 {[%emt 0:01:11]} Bxc3 {[%emt 0:00:57]} 31. Be3 {[%emt 0:00:29]} Bxe1 {[%emt 0:00:51]} 32. Rxe1 {[%emt 0:00:06]} a6 {[%emt 0:00:44]} 33. Bc5 {[%emt 0:00:47]} Qe6 {[%emt 0:00:47]} 34. Qe2 {[%emt 0:00:40]} Qd7 {[%emt 0:00:29]} 35. Rf1 {[%emt 0:00:27]} f6 {[%emt 0:01:10]} 36. Qc2 {[%emt 0:00:29]} Qe6 {[%emt 0:00:32]} 37. Qa4 {[%emt 0:00:30]} Kf7 38. Qc2 {[%emt 0:00:33]} Qxe4 {[%emt 0:00:46]} 39. Bf2 {[%emt 0:00:23]} Rxg3+ {[%emt 0:00:09]} 0-1

[Event "Portugal Open 2019"]
[Site "Lisbon"]
[Date "2019.02.09"]
[Round "9.35"]
[White "Kowalski, Igor"]
[Black "Thompson, Ian D"]
[Result "1-0"]
[ECO "D10"]
[WhiteElo "2296"]
[BlackElo "2122"]
[Annotator "NA"]
[PlyCount "75"]
[EventDate "2019.01.25"]
[EventType "swiss"]
[EventCountry "POR"]
[SourceTitle "playchess.com"]
[Source "ChessBase"]
[SourceQuality "1"]
[TimeControl "5400+30"]

1. d4 d5 2. c4 c6 3. cxd5 cxd5 4. Nc3 Nf6 5. Bf4 a6 6. e3 Nc6 7. Bd3 e6 8. Nf3 Bd6 9. Rc1 Bxf4 10. exf4 Bd7 11. O-O O-O 12. Bb1 b5 13. Ne5 Rc8 14. Qd3 g6 15. Ne2 Ne8 16. Qa3 a5 17. Qh3 Nxe5 18. fxe5 f5 19. exf6 Qxf6 20. Rxc8 Bxc8 21. Qc3 Qd8 22. Bd3 Bd7 23. Qc5 Qb8 24. Rc1 Rf7 25. Qc3 Qb6 26. Qd2 e5 27. Rc5 e4 28. Bc2 Nf6 29. Bb3 a4 30. Bxd5 Nxd5 31. Rxd5 Qe6 32. Qg5 b4 33. h3 Qa6 34. Ng3 Kg7 35. Qe5+ Kh6 36. Qxe4 Be6 37. Qh4+ Kg7 38. Nh5+ 1-0